[Event "EYCC Open-U14 2019"]
[Site "Bratislava"]
[Date "2019.08.06"]
[Round "5.2"]
[White "Tsvetkov, Andrey"]
[Black "Sahakyan, Aleks"]
[Result "1-0"]
[ECO "E20"]
[WhiteElo "2324"]
[BlackElo "1856"]
[Annotator "NA"]
[PlyCount "61"]
[EventDate "2019.08.02"]
[EventType "swiss"]
[EventCountry "SVK"]
[SourceTitle "playchess.com"]
[Source "ChessBase"]
[SourceQuality "1"]
[TimeControl "40/5400+30:1800+30"]

1. d4 {[%emt 0:00:00]} Nf6 {[%emt 0:00:00]} 2. c4 {[%emt 0:00:00]} e6 {[%emt 0:00:00]} 3. Nc3 {[%emt 0:00:00]} Bb4 {[%emt 0:00:00]} 4. f3 {[%emt 0:00:00]} c5 {[%emt 0:00:16]} 5. d5 {[%emt 0:00:00]} O-O {[%emt 0:00:08]} 6. e4 {[%emt 0:00:00]} d6 {[%emt 0:00:22]} 7. Nge2 {[%emt 0:00:42]} b5 {[%emt 0:00:58]} 8. Nf4 {[%emt 0:00:06]} exd5 {[%emt 0:01:08]} 9. cxd5 {[%emt 0:03:22]} a6 {[%emt 0:00:07]} 10. Be2 {[%emt 0:02:08]} Nbd7 {[%emt 0:00:27]} 11. O-O {[%emt 0:01:00]} c4 {[%emt 0:01:17]} 12. Kh1 {[%emt 0:00:22]} Bc5 {[%emt 0:01:47]} 13. b3 {[%emt 0:00:17]} Qa5 {[%emt 0:04:41]} 14. Bd2 {[%emt 0:12:27]} Bd4 {[%emt 0:04:12]} 15. a3 {[%emt 0:04:54]} Bxc3 {[%emt 0:04:42]} 16. b4 {[%emt 0:00:02]} Bxb4 {[%emt 0:06:56]} 17. axb4 {[%emt 0:00:44]} Qc7 {[%emt 0:00:33]} 18. Bc3 {[%emt 0:03:04]} Ne5 {[%emt 0:02:05]} 19. Qd2 {[%emt 0:03:18]} Qe7 {[%emt 0:01:57]} 20. Bd1 {[%emt 0:07:54]} Nfd7 {[%emt 0:01:40]} 21. Nh5 {[%emt 0:04:53]} g6 {[%emt 0:11:10]} 22. Ng3 {[%emt 0:01:48]} h5 {[%emt 0:04:58]} 23. f4 {[%emt 0:15:12]} Nd3 {[%emt 0:01:10]} 24. f5 {[%emt 0:01:21]} Qh4 {[%emt 0:19:19]} 25. Qh6 {[%emt 0:11:04]} N3e5 {[%emt 0:01:28]} 26. Bxe5 {[%emt 0:00:30]} dxe5 {[%emt 0:00:21]} 27. fxg6 {[%emt 0:00:15]} fxg6 {[%emt 0:00:21]} 28. Qxg6+ {[%emt 0:00:02]} Kh8 {[%emt 0:00:01]} 29. Qh6+ {[%emt 0:00:34]} Kg8 {[%emt 0:00:01]} 30. Bxh5 {[%emt 0:00:11]} Nf6 {[%emt 0:00:38]} 31. Bf7+ {[%emt 0:00:05]} 1-0

[Event "EYCC Open-U14 2019"]
[Site "Bratislava"]
[Date "2019.08.06"]
[Round "5.3"]
[White "Makoveev, Ilya"]
[Black "Krastev, Alexander"]
[Result "1/2-1/2"]
[ECO "C55"]
[WhiteElo "2288"]
[BlackElo "2325"]
[Annotator "NA"]
[PlyCount "42"]
[EventDate "2019.08.02"]
[EventType "swiss"]
[EventCountry "SVK"]
[SourceTitle "playchess.com"]
[Source "ChessBase"]
[SourceQuality "1"]
[TimeControl "40/5400+30:1800+30"]

1. e4 {[%emt 0:00:00]} e5 {[%emt 0:00:00]} 2. Nf3 {[%emt 0:00:00]} Nc6 {[%emt 0:00:00]} 3. Bc4 {[%emt 0:00:30]} Nf6 {[%emt 0:00:00]} 4. d3 {[%emt 0:00:10]} Be7 {[%emt 0:00:09]} 5. O-O {[%emt 0:01:24]} O-O {[%emt 0:00:10]} 6. a4 {[%emt 0:05:11]} d6 {[%emt 0:14:36]} 7. c3 {[%emt 0:01:11]} h6 {[%emt 0:01:30]} 8. Re1 {[%emt 0:02:36]} Nh7 {[%emt 0:00:05]} 9. h3 {[%emt 0:05:53]} Ng5 {[%emt 0:01:21]} 10. Nbd2 {[%emt 0:20:55]} Be6 {[%emt 0:27:23]} 11. a5 {[%emt 0:13:16]} Nxf3+ {[%emt 0:05:38]} 12. Qxf3 {[%emt 0:05:08]} a6 {[%emt 0:06:57]} 13. Nf1 {[%emt 0:09:16]} Bg5 {[%emt 0:06:08]} 14. b4 {[%emt 0:02:27]} Bxc1 {[%emt 0:06:16]} 15. Raxc1 {[%emt 0:00:13]} Ne7 {[%emt 0:03:44]} 16. Ne3 {[%emt 0:01:07]} Qd7 {[%emt 0:02:16]} 17. Red1 {[%emt 0:10:39]} Bxc4 {[%emt 0:06:20]} 18. dxc4 {[%emt 0:06:24]} Qc6 {[%emt 0:00:13]} 19. Qg4 {[%emt 0:02:30]} h5 {[%emt 0:09:01]} 20. Qg5 {[%emt 0:07:57]} f6 {[%emt 0:05:52]} 21. Qh4 {[%emt 0:00:22]} g5 {[%emt 0:01:27]} 1/2-1/2

[Event "EYCC Open-U14 2019"]
[Site "Bratislava"]
[Date "2019.08.06"]
[Round "5.4"]
[White "Kirillov, Dmitry"]
[Black "Stukan, Martin"]
[Result "0-1"]
[ECO "B51"]
[WhiteElo "2244"]
[BlackElo "2303"]
[Annotator "NA"]
[PlyCount "68"]
[EventDate "2019.08.02"]
[EventType "swiss"]
[EventCountry "SVK"]
[SourceTitle "playchess.com"]
[Source "ChessBase"]
[SourceQuality "1"]
[TimeControl "40/5400+30:1800+30"]

1. e4 {[%emt 0:00:00]} c5 {[%emt 0:00:00]} 2. Nf3 {[%emt 0:00:00]} d6 {[%emt 0:00:00]} 3. Bb5+ {[%emt 0:00:00]} Nd7 {[%emt 0:00:00]} 4. d4 {[%emt 0:00:00]} cxd4 {[%emt 0:00:00]} 5. Qxd4 {[%emt 0:00:00]} a6 {[%emt 0:00:00]} 6. Bxd7+ {[%emt 0:00:22]} Bxd7 {[%emt 0:00:00]} 7. Nc3 {[%emt 0:00:17]} e5 {[%emt 0:02:50]} 8. Qd3 {[%emt 0:00:05]} Rc8 {[%emt 0:03:08]} 9. O-O {[%emt 0:00:09]} h6 {[%emt 0:00:46]} 10. a4 {[%emt 0:00:23]} Nf6 {[%emt 0:00:32]} 11. h3 {[%emt 0:00:05]} Be7 {[%emt 0:01:03]} 12. Rd1 {[%emt 0:00:08]} Be6 {[%emt 0:02:09]} 13. Nh2 {[%emt 0:07:39]} O-O {[%emt 0:07:19]} 14. Nf1 {[%emt 0:00:14]} Qa5 {[%emt 0:04:52]} 15. Bd2 {[%emt 0:16:42]} Qc5 {[%emt 0:13:03]} 16. Ne3 {[%emt 0:05:51]} Rfd8 {[%emt 0:17:04]} 17. Be1 {[%emt 0:00:50]} Rd7 {[%emt 0:00:39]} 18. b3 {[%emt 0:11:13]} Bd8 {[%emt 0:04:18]} 19. Ncd5 {[%emt 0:22:12]} Bxd5 {[%emt 0:02:13]} 20. exd5 {[%emt 0:00:10]} Bb6 {[%emt 0:03:03]} 21. a5 {[%emt 0:01:01]} Ba7 {[%emt 0:01:29]} 22. Ra4 {[%emt 0:02:01]} Qc7 {[%emt 0:01:29]} 23. Rc4 {[%emt 0:03:19]} Qd8 {[%emt 0:00:14]} 24. Rxc8 {[%emt 0:01:11]} Qxc8 {[%emt 0:00:03]} 25. Nf5 {[%emt 0:01:14]} h5 {[%emt 0:13:17]} 26. Qg3 {[%emt 0:02:25]} g6 {[%emt 0:00:35]} 27. Qg5 {[%emt 0:07:00]} Ne4 {[%emt 0:07:38]} 28. Ne7+ {[%emt 0:03:45]} Rxe7 {[%emt 0:00:05]} 29. Qxe7 {[%emt 0:00:03]} Qxc2 {[%emt 0:00:07]} 30. Ra1 {[%emt 0:00:04]} Bd4 {[%emt 0:00:54]} 31. Qxb7 {[%emt 0:08:17]} Bxa1 {[%emt 0:00:27]} 32. Qxa6 {[%emt 0:00:06]} Qxb3 {[%emt 0:00:56]} 33. Qc8+ {[%emt 0:00:08]} Kg7 {[%emt 0:00:08]} 34. a6 {[%emt 0:00:29]} Bd4 {[%emt 0:00:09]} 0-1

[Event "EYCC Open-U14 2019"]
[Site "Bratislava"]
[Date "2019.08.06"]
[Round "5.5"]
[White "Sokolovsky, Yahli"]
[Black "Borhy, Marcell"]
[Result "0-1"]
[ECO "B01"]
[WhiteElo "2093"]
[BlackElo "2382"]
[Annotator "NA"]
[PlyCount "124"]
[EventDate "2019.08.02"]
[EventType "swiss"]
[EventCountry "SVK"]
[SourceTitle "playchess.com"]
[Source "ChessBase"]
[SourceQuality "1"]
[TimeControl "40/5400+30:1800+30"]

1. e4 {[%emt 0:00:00]} d5 {[%emt 0:00:00]} 2. exd5 {[%emt 0:00:00]} Nf6 {[%emt 0:00:00]} 3. d4 {[%emt 0:00:00]} Nxd5 {[%emt 0:00:03]} 4. Nf3 {[%emt 0:00:00]} g6 {[%emt 0:00:08]} 5. c4 {[%emt 0:01:20]} Nb6 {[%emt 0:00:08]} 6. c5 {[%emt 0:06:12]} Nd5 {[%emt 0:00:06]} 7. Bc4 {[%emt 0:01:36]} Bg7 {[%emt 0:00:09]} 8. Qb3 {[%emt 0:01:52]} c6 {[%emt 0:00:06]} 9. Nc3 {[%emt 0:01:52]} O-O {[%emt 0:00:17]} 10. O-O {[%emt 0:02:44]} Nxc3 {[%emt 0:00:23]} 11. bxc3 {[%emt 0:01:23]} b5 {[%emt 0:00:36]} 12. cxb6 {[%emt 0:08:01]} axb6 {[%emt 0:00:15]} 13. Ng5 {[%emt 0:06:22]} e6 {[%emt 0:02:23]} 14. Ne4 {[%emt 0:01:08]} Ba6 {[%emt 0:02:03]} 15. Bxa6 {[%emt 0:08:36]} Rxa6 {[%emt 0:00:31]} 16. Bg5 {[%emt 0:06:08]} Qc7 {[%emt 0:14:08]} 17. a4 {[%emt 0:12:52]} Nd7 {[%emt 0:01:28]} 18. Ra3 {[%emt 0:02:34]} Rfa8 {[%emt 0:05:37]} 19. Rfa1 {[%emt 0:00:18]} c5 {[%emt 0:43:40]} 20. Be3 {[%emt 0:05:42]} c4 {[%emt 0:01:08]} 21. Qc2 {[%emt 0:02:30]} h6 {[%emt 0:05:48]} 22. f3 {[%emt 0:03:20]} Qc6 {[%emt 0:03:27]} 23. h4 {[%emt 0:04:44]} f5 {[%emt 0:00:51]} 24. Nf2 {[%emt 0:00:32]} Nf6 {[%emt 0:00:19]} 25. Nh3 {[%emt 0:01:07]} Nd5 {[%emt 0:00:16]} 26. Bd2 {[%emt 0:00:47]} Kh7 {[%emt 0:04:55]} 27. Nf4 {[%emt 0:00:33]} e5 {[%emt 0:00:52]} 28. dxe5 {[%emt 0:01:27]} Bxe5 {[%emt 0:00:02]} 29. Nxd5 {[%emt 0:02:20]} Qxd5 {[%emt 0:00:02]} 30. h5 {[%emt 0:00:26]} b5 {[%emt 0:02:53]} 31. Be3 {[%emt 0:03:12]} Qe6 {[%emt 0:02:20]} 32. hxg6+ {[%emt 0:01:32]} Kxg6 {[%emt 0:00:43]} 33. Kf2 {[%emt 0:03:08]} h5 {[%emt 0:03:48]} 34. R3a2 {[%emt 0:02:37]} bxa4 {[%emt 0:04:26]} 35. Rxa4 {[%emt 0:00:18]} Rxa4 {[%emt 0:00:10]} 36. Rxa4 {[%emt 0:00:04]} Rxa4 {[%emt 0:00:04]} 37. Qxa4 {[%emt 0:00:04]} Bxc3 {[%emt 0:00:11]} 38. Qd1 {[%emt 0:01:50]} Bf6 {[%emt 0:00:47]} 39. g3 {[%emt 0:03:17]} Be5 {[%emt 0:02:22]} 40. Qc2 {[%emt 0:00:00]} Kg7 {[%emt 0:00:00]} 41. Qe2 {[%emt 0:03:59]} Kg6 {[%emt 0:05:26]} 42. Qc2 {[%emt 0:01:23]} Kf7 {[%emt 0:01:46]} 43. Qd1 {[%emt 0:07:16]} Bxg3+ {[%emt 0:02:56]} 44. Kxg3 {[%emt 0:00:13]} Qxe3 {[%emt 0:00:05]} 45. Qd7+ {[%emt 0:01:31]} Kf6 {[%emt 0:00:18]} 46. Qd6+ {[%emt 0:03:10]} Qe6 {[%emt 0:00:09]} 47. Qf8+ {[%emt 0:00:07]} Kg6 {[%emt 0:08:59]} 48. Kf4 {[%emt 0:00:38]} c3 {[%emt 0:00:50]} 49. Qc5 {[%emt 0:00:59]} Qf6 {[%emt 0:00:23]} 50. Qg1+ {[%emt 0:00:39]} Kh7 {[%emt 0:00:48]} 51. Qc5 {[%emt 0:00:30]} Kh6 {[%emt 0:00:23]} 52. Qc8 {[%emt 0:02:16]} h4 {[%emt 0:02:06]} 53. Qe6 {[%emt 0:02:09]} Kg7 {[%emt 0:00:44]} 54. Qd7+ {[%emt 0:00:34]} Kg6 {[%emt 0:00:40]} 55. Qe8+ {[%emt 0:02:05]} Kg7 {[%emt 0:03:12]} 56. Qd7+ {[%emt 0:00:53]} Kf8 {[%emt 0:00:16]} 57. Qc8+ {[%emt 0:00:28]} Kf7 {[%emt 0:00:22]} 58. Qc7+ {[%emt 0:05:57]} Kg6 {[%emt 0:00:29]} 59. Qxc3 {[%emt 0:01:07]} Qg5+ {[%emt 0:01:20]} 60. Ke5 {[%emt 0:00:04]} f4+ {[%emt 0:01:01]} 61. Ke6 {[%emt 0:01:20]} Qf5+ {[%emt 0:00:07]} 62. Ke7 {[%emt 0:00:07]} Qf7+ {[%emt 0:00:07]} 0-1

[Event "EYCC Open-U14 2019"]
[Site "Bratislava"]
[Date "2019.08.06"]
[Round "5.6"]
[White "Can, Isik"]
[Black "Guz, Ari"]
[Result "1/2-1/2"]
[ECO "B41"]
[WhiteElo "2374"]
[BlackElo "2165"]
[Annotator "NA"]
[PlyCount "81"]
[EventDate "2019.08.02"]
[EventType "swiss"]
[EventCountry "SVK"]
[SourceTitle "playchess.com"]
[Source "ChessBase"]
[SourceQuality "1"]
[TimeControl "40/5400+30:1800+30"]

1. e4 {[%emt 0:00:00]} c5 {[%emt 0:00:00]} 2. Nf3 {[%emt 0:00:00]} e6 {[%emt 0:00:23]} 3. d4 {[%emt 0:00:00]} cxd4 {[%emt 0:00:20]} 4. Nxd4 {[%emt 0:00:00]} a6 {[%emt 0:00:14]} 5. c4 {[%emt 0:00:00]} Nf6 {[%emt 0:00:16]} 6. Nc3 {[%emt 0:00:00]} Bb4 {[%emt 0:00:43]} 7. Qd3 {[%emt 0:00:02]} d5 {[%emt 0:01:59]} 8. exd5 {[%emt 0:00:11]} exd5 {[%emt 0:00:12]} 9. Be2 {[%emt 0:00:04]} O-O {[%emt 0:00:35]} 10. O-O {[%emt 0:00:06]} Nc6 {[%emt 0:00:40]} 11. Nxd5 {[%emt 0:00:05]} Nxd5 {[%emt 0:00:28]} 12. Nxc6 {[%emt 0:00:03]} bxc6 {[%emt 0:00:13]} 13. cxd5 {[%emt 0:00:04]} Qxd5 {[%emt 0:00:26]} 14. Qg3 {[%emt 0:00:04]} Bd6 {[%emt 0:00:20]} 15. Bf4 {[%emt 0:00:01]} Bxf4 {[%emt 0:00:13]} 16. Qxf4 {[%emt 0:00:02]} Be6 {[%emt 0:00:29]} 17. Rfc1 {[%emt 0:00:01]} Qd7 {[%emt 0:00:20]} 18. b3 {[%emt 0:05:23]} Rfe8 {[%emt 0:09:22]} 19. Rc2 {[%emt 0:16:47]} Bd5 {[%emt 0:14:17]} 20. Rac1 {[%emt 0:03:41]} a5 {[%emt 0:08:30]} 21. Bg4 {[%emt 0:09:41]} Qe7 {[%emt 0:06:50]} 22. h3 {[%emt 0:02:32]} a4 {[%emt 0:05:08]} 23. Re2 {[%emt 0:14:46]} Qxe2 {[%emt 0:05:35]} 24. Bxe2 {[%emt 0:00:03]} Rxe2 {[%emt 0:00:10]} 25. bxa4 {[%emt 0:00:32]} Rxa2 {[%emt 0:00:11]} 26. Rb1 {[%emt 0:00:01]} h6 {[%emt 0:02:34]} 27. Rb8+ {[%emt 0:00:01]} Rxb8 {[%emt 0:00:10]} 28. Qxb8+ {[%emt 0:00:04]} Kh7 {[%emt 0:00:08]} 29. Qb4 {[%emt 0:01:00]} Ra1+ {[%emt 0:02:08]} 30. Kh2 {[%emt 0:00:13]} Ra2 {[%emt 0:00:13]} 31. Kg3 {[%emt 0:02:06]} f5 {[%emt 0:00:25]} 32. a5 {[%emt 0:26:54]} f4+ {[%emt 0:03:10]} 33. Kxf4 {[%emt 0:00:52]} Rxf2+ {[%emt 0:00:18]} 34. Ke3 {[%emt 0:06:55]} Rxg2 {[%emt 0:00:28]} 35. a6 {[%emt 0:06:53]} c5 {[%emt 0:00:49]} 36. Qxc5 {[%emt 0:00:36]} Rg6 {[%emt 0:00:24]} 37. Qc8 {[%emt 0:05:45]} Be6 {[%emt 0:01:55]} 38. Qc2 {[%emt 0:02:47]} Bxh3 {[%emt 0:00:35]} 39. a7 {[%emt 0:00:27]} Bg2 {[%emt 0:00:18]} 40. Kf4 {[%emt 0:00:00]} h5 {[%emt 0:00:00]} 41. Qxg2 {[%emt 0:01:24]} 1/2-1/2

[Event "EYCC Open-U14 2019"]
[Site "Bratislava"]
[Date "2019.08.06"]
[Round "5.7"]
[White "Stamatiou, Rodolfos"]
[Black "Popov, Konstantin"]
[Result "0-1"]
[ECO "B90"]
[WhiteElo "2121"]
[BlackElo "2367"]
[Annotator "NA"]
[PlyCount "110"]
[EventDate "2019.08.02"]
[EventType "swiss"]
[EventCountry "SVK"]
[SourceTitle "playchess.com"]
[Source "ChessBase"]
[SourceQuality "1"]
[TimeControl "40/5400+30:1800+30"]

1. e4 {[%emt 0:00:00]} c5 {[%emt 0:00:00]} 2. Nf3 {[%emt 0:00:00]} d6 {[%emt 0:00:12]} 3. d4 {[%emt 0:00:00]} Nf6 {[%emt 0:00:28]} 4. Nc3 {[%emt 0:00:14]} cxd4 {[%emt 0:00:18]} 5. Nxd4 {[%emt 0:00:11]} a6 {[%emt 0:00:39]} 6. h3 {[%emt 0:00:14]} e6 {[%emt 0:06:46]} 7. g4 {[%emt 0:00:24]} Qc7 {[%emt 0:00:54]} 8. g5 {[%emt 0:02:51]} Nfd7 {[%emt 0:00:14]} 9. Be3 {[%emt 0:04:15]} b5 {[%emt 0:01:38]} 10. a4 {[%emt 0:03:33]} b4 {[%emt 0:00:32]} 11. Na2 {[%emt 0:03:26]} Bb7 {[%emt 0:00:42]} 12. Bg2 {[%emt 0:09:20]} Nc5 {[%emt 0:04:38]} 13. Nxb4 {[%emt 0:08:32]} Nxe4 {[%emt 0:01:49]} 14. O-O {[%emt 0:04:10]} d5 {[%emt 0:05:43]} 15. Nd3 {[%emt 0:03:06]} Bd6 {[%emt 0:00:12]} 16. Qg4 {[%emt 0:05:09]} O-O {[%emt 0:02:09]} 17. Rac1 {[%emt 0:03:54]} Qd7 {[%emt 0:46:33]} 18. c4 {[%emt 0:10:24]} f5 {[%emt 0:05:09]} 19. gxf6 {[%emt 0:02:54]} Rxf6 {[%emt 0:01:50]} 20. c5 {[%emt 0:06:24]} Bc7 {[%emt 0:07:51]} 21. h4 {[%emt 0:06:36]} Nc6 {[%emt 0:03:04]} 22. b4 {[%emt 0:02:31]} Rg6 {[%emt 0:04:21]} 23. Qh3 {[%emt 0:00:24]} Nxd4 {[%emt 0:02:18]} 24. Bxd4 {[%emt 0:00:02]} Rf8 {[%emt 0:02:14]} 25. Kh1 {[%emt 0:14:03]} Qxa4 {[%emt 0:01:24]} 26. h5 {[%emt 0:01:32]} Rh6 {[%emt 0:00:16]} 27. Be3 {[%emt 0:01:14]} Rhf6 {[%emt 0:00:08]} 28. c6 {[%emt 0:01:16]} Bc8 {[%emt 0:01:25]} 29. Qh4 {[%emt 0:03:37]} Qb3 {[%emt 0:00:25]} 30. Bxe4 {[%emt 0:01:16]} dxe4 {[%emt 0:00:02]} 31. Qxe4 {[%emt 0:01:05]} Rf5 {[%emt 0:00:30]} 32. h6 {[%emt 0:01:36]} R8f6 {[%emt 0:00:44]} 33. Rg1 {[%emt 0:01:40]} g6 {[%emt 0:00:35]} 34. Rg4 {[%emt 0:00:33]} Rh5+ {[%emt 0:00:26]} 35. Kg1 {[%emt 0:00:28]} e5 {[%emt 0:00:30]} 36. Nc5 {[%emt 0:00:25]} Qf7 {[%emt 0:00:42]} 37. Rg2 {[%emt 0:00:33]} Rd6 {[%emt 0:00:27]} 38. Na4 Bf5 {[%emt 0:00:35]} 39. Qf3 {[%emt 0:00:50]} Rh3 {[%emt 0:00:19]} 40. Rg3 {[%emt 0:00:00]} e4 {[%emt 0:00:00]} 41. Qe2 {[%emt 0:09:35]} Rd5 {[%emt 0:18:14]} 42. Rg2 {[%emt 0:05:26]} Be6 {[%emt 0:03:09]} 43. Rc5 {[%emt 0:02:01]} Qf3 {[%emt 0:07:01]} 44. Qxf3 {[%emt 0:03:14]} exf3 {[%emt 0:00:11]} 45. Rxd5 {[%emt 0:01:10]} Bxd5 {[%emt 0:01:10]} 46. Rg4 {[%emt 0:01:30]} Bxc6 {[%emt 0:01:16]} 47. Nc3 {[%emt 0:01:26]} Bh2+ {[%emt 0:01:18]} 48. Kf1 {[%emt 0:00:58]} Be5 {[%emt 0:00:11]} 49. b5 {[%emt 0:01:29]} axb5 {[%emt 0:00:42]} 50. Nb1 {[%emt 0:00:23]} Be4 {[%emt 0:01:12]} 51. Ke1 {[%emt 0:00:41]} Bxb1 {[%emt 0:00:13]} 52. Kd2 {[%emt 0:00:03]} Rh5 {[%emt 0:00:35]} 53. Kc1 {[%emt 0:00:23]} Ba2 {[%emt 0:00:19]} 54. Re4 {[%emt 0:00:06]} Bd5 {[%emt 0:00:16]} 55. Rb4 {[%emt 0:00:08]} Bc4 {[%emt 0:00:08]} 0-1

[Event "EYCC Open-U14 2019"]
[Site "Bratislava"]
[Date "2019.08.06"]
[Round "5.8"]
[White "Morgunov, Marc"]
[Black "Jun, Rudolf Jr."]
[Result "1/2-1/2"]
[ECO "B33"]
[WhiteElo "2314"]
[BlackElo "2200"]
[Annotator "NA"]
[PlyCount "61"]
[EventDate "2019.08.02"]
[EventType "swiss"]
[EventCountry "SVK"]
[SourceTitle "playchess.com"]
[Source "ChessBase"]
[SourceQuality "1"]
[TimeControl "40/5400+30:1800+30"]

1. e4 {[%emt 0:00:00]} c5 {[%emt 0:00:00]} 2. Nf3 {[%emt 0:00:00]} Nc6 {[%emt 0:00:01]} 3. d4 {[%emt 0:00:00]} cxd4 {[%emt 0:00:25]} 4. Nxd4 {[%emt 0:00:00]} Nf6 {[%emt 0:00:14]} 5. Nc3 {[%emt 0:00:00]} e5 {[%emt 0:00:09]} 6. Ndb5 {[%emt 0:00:06]} d6 {[%emt 0:00:31]} 7. Bg5 {[%emt 0:00:07]} a6 {[%emt 0:00:30]} 8. Na3 {[%emt 0:00:08]} b5 {[%emt 0:00:28]} 9. Nd5 {[%emt 0:00:07]} Be7 {[%emt 0:01:19]} 10. Bxf6 {[%emt 0:00:05]} Bxf6 {[%emt 0:00:14]} 11. c3 {[%emt 0:00:05]} O-O {[%emt 0:01:09]} 12. h4 {[%emt 0:00:06]} g6 {[%emt 0:05:13]} 13. g3 {[%emt 0:03:32]} Bg7 {[%emt 0:02:31]} 14. h5 {[%emt 0:05:50]} Be6 {[%emt 0:05:43]} 15. Bg2 {[%emt 0:01:35]} Rb8 {[%emt 0:01:15]} 16. Nc2 {[%emt 0:00:50]} a5 {[%emt 0:18:31]} 17. Nce3 {[%emt 0:09:11]} Qg5 {[%emt 0:10:13]} 18. Nc7 {[%emt 0:21:29]} Qe7 {[%emt 0:05:40]} 19. Nxe6 {[%emt 0:02:19]} Qxe6 {[%emt 0:00:15]} 20. Bh3 {[%emt 0:02:22]} Qe7 {[%emt 0:02:08]} 21. hxg6 {[%emt 0:02:56]} hxg6 {[%emt 0:00:36]} 22. Qg4 {[%emt 0:00:57]} Bh6 {[%emt 0:12:13]} 23. Qe2 {[%emt 0:26:47]} Bxe3 {[%emt 0:03:22]} 24. Qxe3 {[%emt 0:00:08]} Kg7 {[%emt 0:00:27]} 25. Rd1 {[%emt 0:01:14]} Rh8 {[%emt 0:02:36]} 26. Kf1 {[%emt 0:03:46]} b4 {[%emt 0:01:50]} 27. Kg2 {[%emt 0:00:09]} bxc3 {[%emt 0:00:57]} 28. bxc3 {[%emt 0:00:05]} Nd8 {[%emt 0:16:41]} 29. Rb1 {[%emt 0:12:24]} Rxb1 {[%emt 0:01:16]} 30. Rxb1 {[%emt 0:00:04]} Ne6 {[%emt 0:00:22]} 31. Rb5 {[%emt 0:02:39]} 1/2-1/2

[Event "EYCC Open-U14 2019"]
[Site "Bratislava"]
[Date "2019.08.06"]
[Round "5.9"]
[White "Biletskiy, Danylo"]
[Black "Stalmach, Richard"]
[Result "1-0"]
[ECO "A15"]
[WhiteElo "2105"]
[BlackElo "2381"]
[Annotator "NA"]
[PlyCount "132"]
[EventDate "2019.08.02"]
[EventType "swiss"]
[EventCountry "SVK"]
[SourceTitle "playchess.com"]
[Source "ChessBase"]
[SourceQuality "1"]
[TimeControl "40/5400+30:1800+30"]

1. c4 {[%emt 0:00:00]} Nf6 {[%emt 0:00:00]} 2. Nf3 {[%emt 0:00:00]} g6 {[%emt 0:00:00]} 3. b3 {[%emt 0:00:00]} Bg7 {[%emt 0:00:03]} 4. Bb2 {[%emt 0:00:00]} d6 {[%emt 0:00:26]} 5. d4 {[%emt 0:00:00]} O-O {[%emt 0:00:13]} 6. g3 {[%emt 0:00:02]} Nbd7 {[%emt 0:00:19]} 7. Bg2 {[%emt 0:00:06]} e5 {[%emt 0:00:47]} 8. dxe5 {[%emt 0:00:06]} dxe5 {[%emt 0:00:09]} 9. O-O {[%emt 0:06:45]} Re8 {[%emt 0:04:19]} 10. Nxe5 {[%emt 0:00:44]} Ng4 {[%emt 0:13:47]} 11. Nd3 {[%emt 0:00:12]} Bxb2 {[%emt 0:02:38]} 12. Nxb2 {[%emt 0:00:02]} Qf6 {[%emt 0:00:39]} 13. Qc2 {[%emt 0:03:49]} Nc5 {[%emt 0:32:07]} 14. Nc3 {[%emt 0:00:11]} Qe5 {[%emt 0:13:14]} 15. Rad1 {[%emt 0:12:02]} Bf5 {[%emt 0:04:10]} 16. Qc1 {[%emt 0:00:01]} c6 {[%emt 0:12:20]} 17. b4 {[%emt 0:00:51]} Na6 {[%emt 0:02:20]} 18. b5 {[%emt 0:03:24]} Nc5 {[%emt 0:04:34]} 19. bxc6 {[%emt 0:00:07]} Ne4 {[%emt 0:00:08]} 20. Nxe4 {[%emt 0:00:44]} Bxe4 {[%emt 0:00:04]} 21. Nd3 {[%emt 0:02:44]} Qd4 {[%emt 0:03:02]} 22. Qf4 {[%emt 0:05:30]} Nf6 {[%emt 0:02:05]} 23. cxb7 {[%emt 0:01:56]} Rab8 {[%emt 0:00:03]} 24. e3 {[%emt 0:08:54]} Qc3 {[%emt 0:02:07]} 25. Nc5 {[%emt 0:01:00]} Bxg2 {[%emt 0:01:11]} 26. Kxg2 {[%emt 0:00:02]} Qb4 {[%emt 0:01:40]} 27. Qd4 {[%emt 0:00:51]} Qb6 {[%emt 0:00:05]} 28. Qd6 {[%emt 0:01:54]} Qb4 {[%emt 0:00:49]} 29. Rb1 {[%emt 0:00:37]} Qxc4 {[%emt 0:00:05]} 30. Na6 {[%emt 0:00:27]} Ne4 {[%emt 0:00:53]} 31. Qa3 {[%emt 0:07:22]} Rxb7 {[%emt 0:00:02]} 32. Rxb7 {[%emt 0:00:19]} Nd2 {[%emt 0:00:03]} 33. Rbb1 {[%emt 0:03:41]} Nxb1 {[%emt 0:00:11]} 34. Qb4 {[%emt 0:07:03]} Qd5+ {[%emt 0:00:37]} 35. Kg1 {[%emt 0:03:03]} Nd2 {[%emt 0:00:08]} 36. Nc7 {[%emt 0:00:19]} Nf3+ {[%emt 0:01:48]} 37. Kh1 {[%emt 0:00:01]} Qh5 {[%emt 0:00:38]} 38. Kg2 {[%emt 0:03:18]} Rd8 {[%emt 0:00:17]} 39. Qf4 {[%emt 0:02:19]} Nd2 {[%emt 0:00:50]} 40. Rc1 {[%emt 0:00:00]} Qa5 {[%emt 0:00:00]} 41. Qf6 {[%emt 0:07:28]} Rb8 {[%emt 0:07:45]} 42. Qd4 {[%emt 0:03:12]} Qb4 {[%emt 0:04:58]} 43. Qxb4 {[%emt 0:03:18]} Rxb4 {[%emt 0:00:04]} 44. Rc2 {[%emt 0:00:24]} Ne4 {[%emt 0:00:10]} 45. f3 {[%emt 0:01:48]} Nf6 {[%emt 0:01:43]} 46. e4 {[%emt 0:00:33]} Kf8 {[%emt 0:01:18]} 47. Rc6 {[%emt 0:05:02]} Rb2+ {[%emt 0:00:22]} 48. Kg1 {[%emt 0:00:01]} Rb1+ {[%emt 0:00:53]} 49. Kf2 {[%emt 0:00:07]} Kg7 {[%emt 0:07:37]} 50. e5 {[%emt 0:01:24]} Nd7 {[%emt 0:01:57]} 51. e6 {[%emt 0:00:02]} fxe6 {[%emt 0:00:03]} 52. Nxe6+ {[%emt 0:00:02]} Kf7 {[%emt 0:00:15]} 53. Ng5+ {[%emt 0:00:30]} Ke7 {[%emt 0:02:07]} 54. Re6+ {[%emt 0:00:28]} Kd8 {[%emt 0:00:32]} 55. Ra6 {[%emt 0:00:02]} Rb5 {[%emt 0:02:48]} 56. h4 {[%emt 0:00:16]} Rb7 {[%emt 0:01:04]} 57. Nxh7 {[%emt 0:00:22]} Nb6 {[%emt 0:00:20]} 58. Nf8 {[%emt 0:00:27]} g5 {[%emt 0:00:37]} 59. Ne6+ {[%emt 0:00:12]} Ke7 {[%emt 0:00:04]} 60. Nxg5 {[%emt 0:00:08]} Kf6 {[%emt 0:00:05]} 61. f4 {[%emt 0:00:46]} Kf5 {[%emt 0:00:23]} 62. Kf3 {[%emt 0:00:14]} Rc7 {[%emt 0:00:07]} 63. g4+ {[%emt 0:00:07]} Kg6 {[%emt 0:00:03]} 64. f5+ {[%emt 0:00:16]} Kh6 {[%emt 0:00:05]} 65. Ne4 {[%emt 0:00:14]} Rd7 {[%emt 0:00:21]} 66. g5+ {[%emt 0:00:05]} Kh5 {[%emt 0:00:09]} 1-0